[Event "Groningen Festival 2019-A"]
[Site "Groningen"]
[Date "2019.12.27"]
[Round "6.1"]
[White "Ernst, Sipke"]
[Black "Fier, Alexandr"]
[Result "0-1"]
[ECO "D85"]
[WhiteElo "2541"]
[BlackElo "2528"]
[Annotator "ChessBase"]
[PlyCount "80"]
[EventDate "2019.12.15"]
[EventType "swiss"]
[EventCountry "NED"]
[SourceTitle "playchess.com"]
[Source "ChessBase"]
[SourceQuality "1"]
[TimeControl "40/5400+30:1800+30"]

1. d4 {[%emt 0:00:04]} Nf6 {[%emt 0:00:00]} 2. c4 {[%emt 0:00:23]} g6 {[%emt 0:00:00]} 3. Nc3 {[%emt 0:00:04]} d5 {[%emt 0:00:00]} 4. cxd5 {[%emt 0:00:04]} Nxd5 {[%emt 0:00:00]} 5. e4 {[%emt 0:00:05]} Nxc3 {[%emt 0:00:00]} 6. bxc3 {[%emt 0:00:04]} Bg7 {[%emt 0:00:00]} 7. Nf3 {[%emt 0:00:08]} c5 {[%emt 0:00:00]} 8. Be3 {[%emt 0:00:03]} Bg4 {[%emt 0:00:05]} 9. Rc1 {[%emt 0:00:02]} O-O {[%emt 0:00:17]} 10. Be2 {[%emt 0:00:11]} Qa5 {[%emt 0:00:05]} 11. Qd2 {[%emt 0:07:52]} Nd7 {[%emt 0:00:08]} 12. h3 {[%emt 0:08:26]} Bxf3 {[%emt 0:00:14]} 13. Bxf3 {[%emt 0:00:05]} Rac8 {[%emt 0:02:00]} 14. d5 {[%emt 0:01:53]} c4 {[%emt 0:00:15]} 15. O-O {[%emt 0:02:29]} Nc5 {[%emt 0:00:11]} 16. Rc2 {[%emt 0:04:17]} b5 {[%emt 0:06:44]} 17. h4 {[%emt 0:03:00]} Qc7 {[%emt 0:04:40]} 18. h5 {[%emt 0:10:32]} a5 {[%emt 0:16:12]} 19. g3 {[%emt 0:05:12]} Na4 {[%emt 0:04:32]} 20. Bg4 {[%emt 0:03:33]} Rb8 {[%emt 0:03:43]} 21. Bf4 {[%emt 0:11:39]} Be5 {[%emt 0:00:52]} 22. Bh6 {[%emt 0:00:05]} Bg7 {[%emt 0:05:08]} 23. Bf4 {[%emt 0:05:38]} Be5 {[%emt 0:01:44]} 24. Bh6 {[%emt 0:00:57]} b4 {[%emt 0:01:27]} 25. cxb4 {[%emt 0:02:06]} axb4 {[%emt 0:01:02]} 26. hxg6 {[%emt 0:03:52]} hxg6 {[%emt 0:00:04]} 27. Bxf8 {[%emt 0:10:02]} Kxf8 {[%emt 0:00:32]} 28. Kg2 {[%emt 0:00:41]} Qc5 {[%emt 0:02:25]} 29. Rh1 {[%emt 0:03:05]} Nc3 {[%emt 0:02:21]} 30. Rh7 {[%emt 0:01:48]} Kg8 {[%emt 0:01:25]} 31. Qh6 {[%emt 0:01:48]} Qd4 {[%emt 0:00:05]} 32. Rxf7 {[%emt 0:12:22]} Kxf7 {[%emt 0:02:03]} 33. Rxc3 {[%emt 0:02:09]} bxc3 {[%emt 0:02:36]} 34. Qh7+ {[%emt 0:00:03]} Bg7 {[%emt 0:06:43]} 35. Be6+ {[%emt 0:00:04]} Kf6 {[%emt 0:00:03]} 36. Qh4+ {[%emt 0:00:08]} g5 {[%emt 0:00:03]} 37. Qg4 {[%emt 0:01:28]} Ke5 {[%emt 0:02:24]} 38. f4+ {[%emt 0:01:16]} Kd6 {[%emt 0:00:03]} 39. e5+ {[%emt 0:00:03]} Kc5 {[%emt 0:00:19]} 40. Qxg5 {[%emt 0:00:05]} Qd2+ {[%emt 0:00:23]} 0-1

[Event "Groningen Festival 2019-A"]
[Site "Groningen"]
[Date "2019.12.27"]
[Round "6.5"]
[White "Gleizerov, Evgeny"]
[Black "Beerdsen, Thomas"]
[Result "1/2-1/2"]
[ECO "E03"]
[WhiteElo "2508"]
[BlackElo "2482"]
[Annotator "ChessBase"]
[PlyCount "57"]
[EventDate "2019.12.15"]
[EventType "swiss"]
[EventCountry "NED"]
[SourceTitle "playchess.com"]
[Source "ChessBase"]
[SourceQuality "1"]
[TimeControl "40/5400+30:1800+30"]

1. d4 {[%emt 0:00:00]} Nf6 {[%emt 0:00:00]} 2. c4 {[%emt 0:00:00]} e6 {[%emt 0:00:00]} 3. g3 {[%emt 0:00:00]} d5 {[%emt 0:00:00]} 4. Bg2 {[%emt 0:00:00]} dxc4 {[%emt 0:00:00]} 5. Qa4+ {[%emt 0:00:07]} Nbd7 {[%emt 0:04:55]} 6. Qxc4 {[%emt 0:00:09]} a6 {[%emt 0:04:46]} 7. Be3 {[%emt 0:01:29]} Nb6 {[%emt 0:06:07]} 8. Qd3 {[%emt 0:16:18]} Nbd5 {[%emt 0:02:35]} 9. Nf3 {[%emt 0:01:11]} Nxe3 {[%emt 0:03:54]} 10. Qxe3 {[%emt 0:01:37]} c5 {[%emt 0:04:19]} 11. Nc3 {[%emt 0:14:35]} cxd4 {[%emt 0:07:56]} 12. Qxd4 {[%emt 0:07:56]} Qxd4 {[%emt 0:03:49]} 13. Nxd4 {[%emt 0:00:41]} Bc5 {[%emt 0:01:30]} 14. Nb3 {[%emt 0:05:25]} Bb4 {[%emt 0:09:13]} 15. Rc1 {[%emt 0:01:59]} Ke7 {[%emt 0:08:53]} 16. O-O {[%emt 0:00:23]} Rb8 {[%emt 0:01:46]} 17. Ne4 {[%emt 0:09:48]} Nxe4 {[%emt 0:04:42]} 18. Bxe4 {[%emt 0:00:03]} Rd8 {[%emt 0:03:14]} 19. Rc7+ {[%emt 0:09:31]} Rd7 {[%emt 0:00:23]} 20. Rc4 {[%emt 0:02:28]} Bd6 {[%emt 0:02:32]} 21. Rfc1 {[%emt 0:00:10]} Rd8 {[%emt 0:07:12]} 22. Na5 {[%emt 0:02:08]} f5 {[%emt 0:01:07]} 23. Bg2 {[%emt 0:01:13]} e5 {[%emt 0:02:23]} 24. Bd5 {[%emt 0:00:47]} e4 {[%emt 0:06:03]} 25. f3 {[%emt 0:08:13]} Bxg3 {[%emt 0:05:17]} 26. fxe4 {[%emt 0:01:37]} Be5 {[%emt 0:01:00]} 27. Rb4 {[%emt 0:06:05]} fxe4 {[%emt 0:01:03]} 28. Bxe4 {[%emt 0:00:52]} Rd4 {[%emt 0:04:03]} 29. Rcc4 {[%emt 0:04:46]} 1/2-1/2

[Event "Groningen Festival 2019-A"]
[Site "Groningen"]
[Date "2019.12.27"]
[Round "6.9"]
[White "Pacher, Milan"]
[Black "Hilverda, Alexander"]
[Result "1/2-1/2"]
[ECO "E54"]
[WhiteElo "2427"]
[BlackElo "2294"]
[Annotator "NA"]
[PlyCount "75"]
[EventDate "2019.12.15"]
[EventType "swiss"]
[EventCountry "NED"]
[SourceTitle "playchess.com"]
[Source "ChessBase"]
[SourceQuality "1"]
[TimeControl "40/5400+30:1800+30"]

1. d4 {[%emt 0:00:00]} d5 {[%emt 0:00:00]} 2. c4 {[%emt 0:00:00]} e6 {[%emt 0:00:00]} 3. Nc3 {[%emt 0:00:00]} Bb4 {[%emt 0:00:02]} 4. e3 {[%emt 0:00:00]} Nf6 {[%emt 0:00:49]} 5. Nf3 {[%emt 0:00:00]} O-O {[%emt 0:00:56]} 6. Bd3 {[%emt 0:00:02]} dxc4 {[%emt 0:00:46]} 7. Bxc4 {[%emt 0:00:03]} c5 {[%emt 0:00:06]} 8. O-O {[%emt 0:00:05]} b6 {[%emt 0:06:27]} 9. a3 {[%emt 0:00:38]} Bxc3 {[%emt 0:00:40]} 10. bxc3 {[%emt 0:00:03]} Bb7 {[%emt 0:01:29]} 11. Qe2 {[%emt 0:00:29]} Nc6 {[%emt 0:06:53]} 12. Bb2 {[%emt 0:01:42]} Na5 {[%emt 0:03:18]} 13. Bd3 {[%emt 0:00:03]} Be4 {[%emt 0:04:10]} 14. Ne5 {[%emt 0:02:42]} Bxd3 {[%emt 0:06:28]} 15. Qxd3 {[%emt 0:00:03]} Qd5 {[%emt 0:00:48]} 16. f3 {[%emt 0:02:46]} Qb3 {[%emt 0:13:51]} 17. Qe2 {[%emt 0:08:27]} cxd4 {[%emt 0:02:22]} 18. cxd4 {[%emt 0:00:05]} Rac8 {[%emt 0:15:03]} 19. Rac1 {[%emt 0:00:10]} Nd5 {[%emt 0:01:16]} 20. e4 {[%emt 0:00:58]} Ne3 {[%emt 0:15:29]} 21. Rxc8 {[%emt 0:06:42]} Rxc8 {[%emt 0:00:18]} 22. Rc1 {[%emt 0:00:05]} Rxc1+ {[%emt 0:01:11]} 23. Bxc1 {[%emt 0:00:02]} Nec4 {[%emt 0:00:28]} 24. Nxc4 {[%emt 0:00:40]} Nxc4 {[%emt 0:02:12]} 25. d5 {[%emt 0:01:41]} b5 {[%emt 0:03:51]} 26. h4 {[%emt 0:04:16]} h6 {[%emt 0:01:28]} 27. Kh2 {[%emt 0:01:14]} a5 {[%emt 0:02:11]} 28. h5 {[%emt 0:03:29]} b4 {[%emt 0:02:18]} 29. axb4 {[%emt 0:00:12]} axb4 {[%emt 0:01:36]} 30. Bf4 {[%emt 0:01:39]} e5 {[%emt 0:00:50]} 31. Bg3 {[%emt 0:02:00]} Qc3 {[%emt 0:01:56]} 32. Qa2 {[%emt 0:00:54]} b3 {[%emt 0:05:37]} 33. Qa8+ {[%emt 0:00:04]} Kh7 {[%emt 0:00:03]} 34. Qc8 {[%emt 0:00:05]} b2 {[%emt 0:01:26]} 35. Qf5+ {[%emt 0:00:03]} Kg8 {[%emt 0:00:03]} 36. Qc8+ {[%emt 0:00:03]} Kh7 {[%emt 0:00:05]} 37. Qf5+ {[%emt 0:00:03]} Kg8 {[%emt 0:00:05]} 38. Qc8+ {[%emt 0:00:03]} 1/2-1/2

[Event "Groningen Festival 2019-A"]
[Site "Groningen"]
[Date "2019.12.27"]
[Round "6.10"]
[White "Maris, Ivo"]
[Black "Danada, Tomas"]
[Result "0-1"]
[ECO "A21"]
[WhiteElo "2413"]
[BlackElo "2271"]
[Annotator "NA"]
[PlyCount "116"]
[EventDate "2019.12.15"]
[EventType "swiss"]
[EventCountry "NED"]
[SourceTitle "playchess.com"]
[Source "ChessBase"]
[SourceQuality "1"]
[TimeControl "40/5400+30:1800+30"]

1. c4 {[%emt 0:00:00]} e5 {[%emt 0:00:00]} 2. Nc3 {[%emt 0:00:00]} Bb4 {[%emt 0:00:00]} 3. Nd5 {[%emt 0:00:07]} Be7 {[%emt 0:00:25]} 4. Nf3 {[%emt 0:00:40]} c6 {[%emt 0:00:18]} 5. Nc3 {[%emt 0:00:21]} d6 {[%emt 0:00:14]} 6. c5 {[%emt 0:02:22]} Nf6 {[%emt 0:02:00]} 7. d3 {[%emt 0:03:39]} h6 {[%emt 0:01:47]} 8. g3 {[%emt 0:00:46]} d5 {[%emt 0:04:35]} 9. Nxe5 {[%emt 0:02:32]} d4 {[%emt 0:00:30]} 10. Nb1 {[%emt 0:01:12]} O-O {[%emt 0:02:49]} 11. Bg2 {[%emt 0:00:48]} Bxc5 {[%emt 0:02:59]} 12. O-O {[%emt 0:00:55]} Re8 {[%emt 0:00:28]} 13. Nf3 {[%emt 0:01:46]} a5 {[%emt 0:01:51]} 14. b3 {[%emt 0:03:26]} Qe7 {[%emt 0:01:23]} 15. Qc2 {[%emt 0:09:03]} Na6 {[%emt 0:03:41]} 16. Re1 {[%emt 0:09:09]} Bb4 {[%emt 0:08:15]} 17. Nbd2 {[%emt 0:03:59]} Bc3 {[%emt 0:01:11]} 18. Bb2 {[%emt 0:03:08]} Nb4 {[%emt 0:00:32]} 19. Qc1 {[%emt 0:00:41]} Bxb2 {[%emt 0:01:04]} 20. Qxb2 {[%emt 0:00:41]} c5 {[%emt 0:00:49]} 21. a3 {[%emt 0:04:07]} Nbd5 {[%emt 0:00:20]} 22. e3 {[%emt 0:03:27]} dxe3 {[%emt 0:00:51]} 23. fxe3 {[%emt 0:01:04]} Nxe3 {[%emt 0:10:14]} 24. Nf1 {[%emt 0:04:02]} Nfd5 {[%emt 0:05:47]} 25. Rxe3 {[%emt 0:01:52]} Nxe3 {[%emt 0:00:17]} 26. Re1 {[%emt 0:00:02]} Ra6 {[%emt 0:02:51]} 27. Rxe3 {[%emt 0:01:05]} Re6 {[%emt 0:00:04]} 28. Rxe6 {[%emt 0:00:54]} Bxe6 {[%emt 0:01:13]} 29. N3d2 {[%emt 0:04:56]} Rd8 {[%emt 0:04:08]} 30. Qc3 {[%emt 0:01:46]} b6 {[%emt 0:08:25]} 31. Ne4 {[%emt 0:05:18]} f5 {[%emt 0:01:59]} 32. Nf2 {[%emt 0:00:41]} Bf7 {[%emt 0:00:18]} 33. Bf3 {[%emt 0:04:08]} Rd4 {[%emt 0:00:43]} 34. g4 {[%emt 0:03:38]} fxg4 {[%emt 0:02:52]} 35. Be4 {[%emt 0:00:15]} Qe6 {[%emt 0:01:48]} 36. b4 {[%emt 0:01:41]} axb4 {[%emt 0:00:56]} 37. axb4 {[%emt 0:00:01]} Rxb4 {[%emt 0:00:25]} 38. Ne3 {[%emt 0:00:22]} h5 {[%emt 0:02:35]} 39. Qa1 {[%emt 0:04:54]} g6 {[%emt 0:04:46]} 40. Nd5 {[%emt 0:11:01]} Rd4 {[%emt 0:00:49]} 41. Nf4 {[%emt 0:30:21]} Qf6 {[%emt 0:31:17]} 42. Ne2 {[%emt 0:04:35]} Rd6 {[%emt 0:01:13]} 43. Qa8+ {[%emt 0:00:25]} Qd8 {[%emt 0:02:05]} 44. Qb7 {[%emt 0:01:20]} Qd7 {[%emt 0:00:33]} 45. Qa8+ {[%emt 0:00:28]} Qd8 {[%emt 0:01:08]} 46. Qb7 {[%emt 0:00:15]} Kg7 {[%emt 0:06:10]} 47. Nf4 {[%emt 0:01:22]} Qd7 {[%emt 0:03:35]} 48. Qa8 {[%emt 0:00:00]} Qd8 {[%emt 0:00:00]} 49. Qb7 {[%emt 0:00:00]} Qg5 {[%emt 0:00:00]} 50. Nxg6 {[%emt 0:00:00]} g3 {[%emt 0:00:00]} 51. Nh3 {[%emt 0:00:00]} Qe3+ {[%emt 0:00:00]} 52. Kg2 {[%emt 0:00:00]} Qe2+ {[%emt 0:00:00]} 53. Kxg3 {[%emt 0:00:00]} Qg4+ {[%emt 0:00:00]} 54. Kf2 {[%emt 0:00:00]} Qxh3 {[%emt 0:00:00]} 55. Ne7 {[%emt 0:00:00]} Rd7 {[%emt 0:00:00]} 56. Qxb6 {[%emt 0:00:00]} Qxh2+ {[%emt 0:00:09]} 57. Bg2 {[%emt 0:00:00]} Qf4+ {[%emt 0:00:28]} 58. Kg1 {[%emt 0:00:00]} Rxe7 {[%emt 0:00:12]} 0-1

[Event "Groningen Festival 2019-A"]
[Site "Groningen"]
[Date "2019.12.27"]
[Round "6.11"]
[White "Zhou, Guijue"]
[Black "Maatman, Nick"]
[Result "1-0"]
[ECO "C02"]
[WhiteElo "2238"]
[BlackElo "2400"]
[Annotator "NA"]
[PlyCount "146"]
[EventDate "2019.12.15"]
[EventType "swiss"]
[EventCountry "NED"]
[SourceTitle "playchess.com"]
[Source "ChessBase"]
[SourceQuality "1"]
[TimeControl "40/5400+30:1800+30"]

1. e4 {[%emt 0:00:00]} e6 {[%emt 0:00:00]} 2. d4 {[%emt 0:00:00]} d5 {[%emt 0:00:00]} 3. e5 {[%emt 0:00:00]} c5 {[%emt 0:00:00]} 4. c3 {[%emt 0:00:00]} Qb6 {[%emt 0:00:00]} 5. Nf3 {[%emt 0:00:00]} Nc6 {[%emt 0:00:00]} 6. a3 {[%emt 0:00:00]} Bd7 {[%emt 0:00:34]} 7. b4 {[%emt 0:00:05]} cxd4 {[%emt 0:00:05]} 8. cxd4 {[%emt 0:00:02]} Rc8 {[%emt 0:00:09]} 9. Be3 {[%emt 0:00:27]} Nh6 {[%emt 0:07:37]} 10. Bd3 {[%emt 0:00:20]} Ng4 {[%emt 0:02:09]} 11. O-O {[%emt 0:00:16]} Nxe3 {[%emt 0:03:05]} 12. fxe3 {[%emt 0:00:05]} Be7 {[%emt 0:01:13]} 13. Nbd2 {[%emt 0:00:26]} O-O {[%emt 0:10:26]} 14. Qe2 {[%emt 0:04:11]} f6 {[%emt 0:18:58]} 15. exf6 {[%emt 0:00:58]} Bxf6 {[%emt 0:00:11]} 16. Nb3 {[%emt 0:00:19]} Rce8 {[%emt 0:11:03]} 17. Nc5 {[%emt 0:17:13]} Bc8 {[%emt 0:00:30]} 18. b5 {[%emt 0:05:02]} Ne7 {[%emt 0:01:24]} 19. Rac1 {[%emt 0:00:20]} Qd6 {[%emt 0:09:26]} 20. e4 {[%emt 0:07:58]} Bxd4+ {[%emt 0:04:14]} 21. Nxd4 {[%emt 0:00:39]} Rxf1+ {[%emt 0:00:02]} 22. Rxf1 {[%emt 0:04:00]} Qxc5 {[%emt 0:00:57]} 23. Qf2 {[%emt 0:00:04]} Kh8 {[%emt 0:10:28]} 24. e5 {[%emt 0:00:13]} Ng8 {[%emt 0:03:52]} 25. a4 {[%emt 0:03:33]} Bd7 {[%emt 0:02:17]} 26. h3 {[%emt 0:02:01]} Nh6 {[%emt 0:05:02]} 27. g4 {[%emt 0:00:27]} Qe7 {[%emt 0:00:09]} 28. Qf4 {[%emt 0:01:56]} a6 {[%emt 0:05:44]} 29. Kg2 {[%emt 0:07:19]} axb5 {[%emt 0:00:04]} 30. Bxb5 {[%emt 0:00:15]} Bxb5 {[%emt 0:00:20]} 31. Nxb5 {[%emt 0:00:05]} Kg8 {[%emt 0:01:43]} 32. Nd6 {[%emt 0:00:18]} Ra8 {[%emt 0:00:39]} 33. Rb1 {[%emt 0:01:40]} Rf8 {[%emt 0:00:20]} 34. Rxb7 {[%emt 0:01:06]} Qxb7 {[%emt 0:02:53]} 35. Qxf8+ {[%emt 0:00:05]} Kxf8 {[%emt 0:00:01]} 36. Nxb7 {[%emt 0:00:02]} Nf7 {[%emt 0:00:40]} 37. a5 {[%emt 0:01:52]} Nxe5 {[%emt 0:00:22]} 38. a6 {[%emt 0:00:26]} Nc6 {[%emt 0:01:46]} 39. Nd8 {[%emt 0:00:13]} Na7 {[%emt 0:00:07]} 40. Nxe6+ {[%emt 0:00:03]} Kf7 {[%emt 0:00:49]} 41. Nc7 {[%emt 0:31:43]} d4 {[%emt 0:30:40]} 42. Kf3 {[%emt 0:00:05]} Ke7 {[%emt 0:00:00]} 43. Ke4 {[%emt 0:00:00]} Kd7 {[%emt 0:00:00]} 44. Nd5 {[%emt 0:00:00]} Nb5 {[%emt 0:00:00]} 45. Nb4 {[%emt 0:00:00]} Kd6 {[%emt 0:00:00]} 46. Nc2 {[%emt 0:00:00]} Kc5 {[%emt 0:00:00]} 47. Nxd4 {[%emt 0:00:00]} Nd6+ {[%emt 0:00:00]} 48. Kf4 {[%emt 0:00:00]} Kb6 {[%emt 0:00:00]} 49. Ke5 {[%emt 0:00:00]} Nf7+ {[%emt 0:00:00]} 50. Kf5 {[%emt 0:00:00]} Kxa6 {[%emt 0:00:00]} 51. Ne6 {[%emt 0:00:00]} Nd6+ {[%emt 0:00:00]} 52. Ke5 {[%emt 0:00:00]} Nf7+ {[%emt 0:00:10]} 53. Kf4 {[%emt 0:00:00]} Kb6 {[%emt 0:00:08]} 54. Nxg7 {[%emt 0:00:00]} Kc6 {[%emt 0:00:45]} 55. Kf5 {[%emt 0:00:00]} Kd5 {[%emt 0:03:46]} 56. Ne8 {[%emt 0:00:00]} Nh6+ {[%emt 0:01:12]} 57. Kg5 {[%emt 0:00:00]} Nf7+ {[%emt 0:00:08]} 58. Kf6 {[%emt 0:00:00]} Ne5 {[%emt 0:00:33]} 59. Kf5 {[%emt 0:00:00]} Kd4 {[%emt 0:01:12]} 60. Nf6 {[%emt 0:00:00]} h6 {[%emt 0:00:11]} 61. Ng8 {[%emt 0:00:00]} Nf7 {[%emt 0:00:18]} 62. h4 {[%emt 0:00:00]} Ke3 {[%emt 0:00:21]} 63. Nf6 {[%emt 0:00:00]} Kf3 {[%emt 0:00:39]} 64. Kg6 {[%emt 0:00:00]} Ne5+ {[%emt 0:02:04]} 65. Kxh6 {[%emt 0:00:00]} Kg3 {[%emt 0:00:28]} 66. Kh5 {[%emt 0:00:00]} Nf3 {[%emt 0:00:32]} 67. Ne4+ {[%emt 0:00:00]} Kf4 {[%emt 0:00:06]} 68. Nf2 {[%emt 0:00:00]} Kg3 {[%emt 0:00:15]} 69. Ne4+ {[%emt 0:00:15]} Kf4 {[%emt 0:00:02]} 70. g5 {[%emt 0:00:08]} Kxe4 {[%emt 0:00:37]} 71. g6 {[%emt 0:00:04]} Ne5 {[%emt 0:01:30]} 72. g7 {[%emt 0:00:08]} Nd7 {[%emt 0:00:04]} 73. Kg5 {[%emt 0:00:24]} Kd5 {[%emt 0:00:05]} 1-0

[Event "Groningen Festival 2019-A"]
[Site "Groningen"]
[Date "2019.12.27"]
[Round "6.12"]
[White "Gomes, Mary Ann"]
[Black "Van Dael, Siem"]
[Result "1-0"]
[ECO "A49"]
[WhiteElo "2324"]
[BlackElo "2255"]
[Annotator "NA RC"]
[PlyCount "67"]
[EventDate "2019.12.15"]
[EventType "swiss"]
[EventCountry "NED"]
[SourceTitle "playchess.com"]
[Source "ChessBase"]
[SourceQuality "1"]
[TimeControl "40/5400+30:1800+30"]

1. Nf3 {[%emt 0:00:00]} Nf6 {[%emt 0:00:00]} 2. g3 {[%emt 0:00:00]} g6 {[%emt 0:00:00]} 3. b3 {[%emt 0:00:00]} Bg7 {[%emt 0:00:00]} 4. Bb2 {[%emt 0:00:00]} O-O {[%emt 0:00:04]} 5. Bg2 {[%emt 0:00:00]} d6 {[%emt 0:00:08]} 6. d4 {[%emt 0:00:01]} b5 {[%emt 0:00:05]} 7. O-O {[%emt 0:00:26]} Bb7 {[%emt 0:03:34]} 8. Nbd2 {[%emt 0:00:09]} Nbd7 {[%emt 0:01:32]} 9. c4 {[%emt 0:00:22]} a6 {[%emt 0:01:14]} 10. Qc2 {[%emt 0:00:09]} Re8 {[%emt 0:01:13]} 11. c5 {[%emt 0:03:41]} Nd5 {[%emt 0:03:29]} 12. Rac1 {[%emt 0:02:35]} Nb4 {[%emt 0:04:25]} 13. Qb1 {[%emt 0:00:08]} dxc5 {[%emt 0:00:19]} 14. dxc5 {[%emt 0:00:13]} e5 {[%emt 0:01:38]} 15. Rfd1 {[%emt 0:14:58]} Nc6 {[%emt 0:04:08]} 16. Nf1 {[%emt 0:02:05]} Qe7 {[%emt 0:04:04]} 17. Ne3 {[%emt 0:00:45]} Rac8 {[%emt 0:01:42]} 18. Bh3 {[%emt 0:03:42]} Red8 {[%emt 0:08:30]} 19. Nd5 {[%emt 0:00:20]} Qe8 {[%emt 0:00:13]} 20. e4 {[%emt 0:00:11]} Ncb8 {[%emt 0:01:57]} 21. Bc3 {[%emt 0:09:10]} f5 {[%emt 0:14:22]} 22. Ba5 {[%emt 0:16:05]} Nf6 {[%emt 0:03:24]} 23. Nxc7 {[%emt 0:08:07]} Rxd1+ {[%emt 0:01:33]} 24. Rxd1 {[%emt 0:00:05]} Qe7 {[%emt 0:00:07]} 25. Nd5 {[%emt 0:07:50]} Nxd5 {[%emt 0:00:14]} 26. exd5 {[%emt 0:00:05]} Qxc5 {[%emt 0:00:08]} 27. Ng5 {[%emt 0:03:39]} Qd6 {[%emt 0:18:29]} 28. Ne6 {[%emt 0:03:33]} Bf6 {[%emt 0:08:09]} 29. g4 {[%emt 0:03:47]} Nc6 {[%emt 0:02:15]} 30. gxf5 {[%emt 0:05:43]} g5 {[%emt 0:02:06]} 31. Bc7 {[%emt 0:02:37]} Rxc7 {[%emt 0:00:08]} 32. Nxc7 {[%emt 0:00:04]} Qxc7 {[%emt 0:00:05]} 33. Qc2 {[%emt 0:00:43]} g4 {[%emt 0:04:40]} 34. Bg2 {[%emt 0:00:30]} 1-0

[Event "Groningen Festival 2019-A"]
[Site "Groningen"]
[Date "2019.12.28"]
[Round "7.1"]
[White "Fier, Alexandr"]
[Black "Poetsch, Hagen"]
[Result "1/2-1/2"]
[ECO "D46"]
[WhiteElo "2528"]
[BlackElo "2522"]
[Annotator "ChessBase"]
[PlyCount "134"]
[EventDate "2019.12.15"]
[EventType "swiss"]
[EventCountry "NED"]
[SourceTitle "playchess.com"]
[Source "ChessBase"]
[SourceQuality "1"]
[TimeControl "40/5400+30:1800+30"]

1. c4 {[%emt 0:00:00]} c6 {[%emt 0:00:10]} 2. Nc3 {[%emt 0:00:00]} d5 {[%emt 0:00:06]} 3. e3 {[%emt 0:00:00]} Nf6 {[%emt 0:00:23]} 4. d4 {[%emt 0:00:00]} e6 {[%emt 0:00:22]} 5. Nf3 {[%emt 0:00:00]} Nbd7 {[%emt 0:00:07]} 6. Qc2 {[%emt 0:00:00]} Bd6 {[%emt 0:00:15]} 7. Bd3 {[%emt 0:00:00]} O-O {[%emt 0:00:07]} 8. O-O {[%emt 0:00:05]} e5 {[%emt 0:00:46]} 9. cxd5 {[%emt 0:00:58]} cxd5 {[%emt 0:00:13]} 10. e4 {[%emt 0:00:04]} exd4 {[%emt 0:00:08]} 11. Nxd5 {[%emt 0:00:04]} Nxd5 {[%emt 0:00:06]} 12. exd5 {[%emt 0:00:03]} h6 {[%emt 0:00:14]} 13. Nxd4 {[%emt 0:00:18]} Qh4 {[%emt 0:01:31]} 14. Nf3 {[%emt 0:00:04]} Qh5 {[%emt 0:00:05]} 15. Bh7+ {[%emt 0:00:10]} Kh8 {[%emt 0:00:05]} 16. Qf5 {[%emt 0:00:03]} Qxf5 {[%emt 0:00:05]} 17. Bxf5 {[%emt 0:00:03]} Nf6 {[%emt 0:00:16]} 18. Bxc8 {[%emt 0:00:03]} Rfxc8 {[%emt 0:01:13]} 19. Rd1 {[%emt 0:00:05]} Rd8 {[%emt 0:00:59]} 20. Be3 {[%emt 0:00:04]} Be7 {[%emt 0:00:33]} 21. d6 {[%emt 0:00:05]} Rxd6 {[%emt 0:00:45]} 22. Rxd6 {[%emt 0:00:07]} Bxd6 {[%emt 0:00:04]} 23. Bd4 {[%emt 0:05:24]} Ne4 {[%emt 0:10:47]} 24. Re1 {[%emt 0:00:55]} Ng5 {[%emt 0:02:36]} 25. Nxg5 {[%emt 0:02:38]} hxg5 {[%emt 0:00:10]} 26. Be3 {[%emt 0:00:01]} Rc8 {[%emt 0:17:11]} 27. Rd1 {[%emt 0:08:38]} Bf4 {[%emt 0:03:13]} 28. Bxa7 {[%emt 0:01:33]} Ra8 {[%emt 0:09:00]} 29. Bd4 {[%emt 0:00:09]} Rxa2 {[%emt 0:00:06]} 30. g3 {[%emt 0:00:02]} Bd6 {[%emt 0:04:56]} 31. Bc3 {[%emt 0:00:04]} Ra6 {[%emt 0:00:22]} 32. Rd5 {[%emt 0:00:03]} f6 {[%emt 0:01:46]} 33. Rb5 {[%emt 0:00:04]} b6 {[%emt 0:03:00]} 34. Rd5 {[%emt 0:10:52]} Bc5 {[%emt 0:16:44]} 35. Rd8+ {[%emt 0:01:06]} Kh7 {[%emt 0:00:06]} 36. b4 {[%emt 0:00:02]} Be7 {[%emt 0:03:16]} 37. Rd7 {[%emt 0:00:05]} Ra3 {[%emt 0:01:10]} 38. Rxe7 {[%emt 0:00:55]} Rxc3 {[%emt 0:00:07]} 39. Re6 {[%emt 0:00:01]} b5 {[%emt 0:00:56]} 40. Rb6 {[%emt 0:00:02]} Rb3 {[%emt 0:00:49]} 41. Rxb5 {[%emt 0:30:03]} Rb1+ {[%emt 0:35:26]} 42. Kg2 {[%emt 0:00:08]} g4 {[%emt 0:00:14]} 43. h3 {[%emt 0:04:04]} gxh3+ {[%emt 0:00:30]} 44. Kxh3 {[%emt 0:00:30]} g5 {[%emt 0:00:30]} 45. Rb7+ {[%emt 0:00:30]} Kh6 {[%emt 0:00:30]} 46. b5 {[%emt 0:00:30]} f5 {[%emt 0:07:21]} 47. Rb6+ {[%emt 0:18:48]} Kh5 {[%emt 0:02:33]} 48. Rb8 {[%emt 0:00:06]} g4+ {[%emt 0:00:39]} 49. Kg2 {[%emt 0:00:03]} Kg6 {[%emt 0:01:00]} 50. b6 {[%emt 0:00:02]} Kg7 {[%emt 0:04:28]} 51. f4 {[%emt 0:00:08]} gxf3+ {[%emt 0:00:42]} 52. Kxf3 {[%emt 0:00:03]} Rb4 {[%emt 0:00:30]} 53. Ke3 {[%emt 0:00:03]} Rg4 {[%emt 0:00:00]} 54. Rd8 {[%emt 0:00:00]} Rxg3+ {[%emt 0:00:00]} 55. Kd4 {[%emt 0:00:00]} Rb3 {[%emt 0:00:00]} 56. Kc5 {[%emt 0:00:00]} Kf6 {[%emt 0:00:00]} 57. Rd4 {[%emt 0:00:00]} Ke6 {[%emt 0:00:00]} 58. Kc6 {[%emt 0:00:00]} Rc3+ {[%emt 0:00:00]} 59. Kb7 {[%emt 0:00:00]} Rb3 {[%emt 0:00:00]} 60. Ra4 {[%emt 0:00:00]} Ke5 {[%emt 0:00:00]} 61. Kc6 {[%emt 0:00:00]} f4 {[%emt 0:00:00]} 62. b7 {[%emt 0:00:00]} Rxb7 {[%emt 0:00:00]} 63. Kxb7 {[%emt 0:00:00]} f3 {[%emt 0:00:00]} 64. Kc6 {[%emt 0:00:00]} f2 {[%emt 0:00:00]} 65. Ra1 {[%emt 0:00:00]} Ke4 {[%emt 0:00:00]} 66. Rf1 {[%emt 0:00:00]} Ke3 {[%emt 0:00:00]} 67. Rxf2 {[%emt 0:00:00]} Kxf2 1/2-1/2